Cogmind - Beta 14 @@@ ROGUE MODE // 2024.08.17 @ 21:53:08 Player: Gilvian Result: Destroyed by G-47 Trooper with Particle Gun Performance ------------- Evolutions (1) 500 Regions Visited (2) 400 Robots Destroyed (64) 320 Value Destroyed (1641) 1641 Prototype IDs (1) 20 Alien Tech Used (0) 0 Bonus (214) 214 TOTAL SCORE: 3095 Bonus ------- High Alert Combat Kills 214 Cogmind --------- Core Integrity 0/400 Matter 237/300 Energy 264/265 System Corruption 8% Temperature Warm (112) Movement Walking (260) Ox2 Location -9/Materials Parts ------- > --- POWER (1) -------- Reinforced Ion Engine > --- PROPULSION (2) --- Aluminum Leg (fused) > --- UTILITY (3) ------ Small Storage Unit Improved Targeting Computer Hardened Light Armor Plating > --- WEAPON (3) ------- Heavy Assault Rifle Flail > --- INVENTORY (8) ---- Ion Engine Medium Storage Unit Huge Storage Unit Weight Redist. System Improved Terrain Scanner EM Pulse Gun Medium Laser Peak State ------------ > --- POWER ------------ Reinforced Ion Engine > --- PROPULSION ------- Aluminum Leg Aluminum Leg > --- UTILITY ---------- Small Storage Unit Visual Processing Unit Improved Targeting Computer > --- WEAPON ----------- Heavy Assault Rifle Improved Assault Rifle Flail > --- INVENTORY -------- Ion Engine Medium Storage Unit Huge Storage Unit Weight Redist. System Improved Terrain Scanner EM Pulse Gun Medium Laser [Rating: 17] Favorites ----------- Power Reinforced Ion Engine Engine Reinforced Ion Engine Propulsion Aluminum Leg Leg Aluminum Leg Utility Small Storage Unit Storage Small Storage Unit Processor Visual Processing Unit Protection Medium Armor Plating Weapon Light Assault Rifle Energy Gun EM Pulse Gun Ballistic Gun Light Assault Rifle Launcher Grenade Launcher Impact Weapon Flail Build | -11 -10 -9 ------- Run | Yrd Mat Mat Slots Evolved 2 | . . 2 Power . | . . . Propulsion . | . . . Utility 1 | . . 1 Weapon 1 | . . 1 Parts Attached 28 | 5 3 20 Power 2 | . . 2 Engine 2 | . . 2 Core . | . . . Reactor . | . . . Propulsion 7 | 2 . 5 Treads . | . . . Leg 7 | 2 . 5 Wheel . | . . . Hover . | . . . Flight . | . . . Utility 8 | 1 1 6 Device . | . . . Storage 1 | 1 . . Processor 3 | . . 3 Hackware . | . . . Protection 4 | . 1 3 Artifact . | . . . Weapon 11 | 2 2 7 Energy Gun 1 | 1 . . Energy Cannon . | . . . Ballistic Gun 5 | 1 . 4 Ballistic Cannon . | . . . Launcher 4 | . 2 2 Special Weapon . | . . . Impact Weapon 1 | . . 1 Slashing Weapon . | . . . Piercing Weapon . | . . . Special Melee Weapon . | . . . Unidentified Prototypes 1 | . . 1 Parts Lost 14 | . 1 13 Power . | . . . Propulsion 5 | . . 5 Utility 3 | . . 3 Weapon 6 | . 1 5 Highest Loss Streak 3 | . 1 3 To Critical Strikes . | . . . Average Slot Usage (%) 77 | . 80 75 Engine 2 | . . 3 Leg 18 | . 28 13 Storage 11 | . 14 11 Processor 4 | . . 7 Protection 11 | . 10 11 Ballistic Gun 16 | . 14 17 Launcher 8 | . 12 6 Impact Weapon 2 | . . 4 Peak Build Rating 17 | 5 6 17 Average Rating 8 | 3 5 9 On Entrance 3 | . 5 6 Naked Turns . | . . . Heaviest Build 28 | 8 10 28 Greatest Support 20 | 20 20 20 Greatest Overweight (x) 6 | . . 6 Average Overweight (x) . | . . 1 Largest Inventory Capacity 8 | 8 8 8 Average Capacity 7 | 6 8 8 Most Carried 8 | 5 7 8 Average Carried 5 | 1 4 5 Final Capacity 8 | 8 8 8 Final Carried 7 | 1 5 7 Class Distribution -------------------- 66% | Mutant 33% | Tank Dominant Class ---------------- Mutant | -10/Materials Tank | -9/Materials Resources | -11 -10 -9 ----------- Run | Yrd Mat Mat Matter Collected 1153 | 189 250 714 Remotely . | . . . Salvage Created 1789 | . 387 1402 Parts 119 | . 25 94 Haulers Intercepted 1 | . 1 . Recyclers Shooed 9 | . 3 6 Parts Field Recycled . | . . . Retrieved Matter . | . . . Parts Self-Destructed . | . . . Prevented . | . . . Kills | -11 -10 -9 ------- Run | Yrd Mat Mat Combat Hostiles Destroyed 43 | . 9 34 Melee 1 | . . 1 Guns 18 | . 3 15 AOE 23 | . 6 17 Classes Destroyed 11 | . 7 4 Worker 5 | . 1 4 Builder 6 | . 2 4 Hauler 1 | . 1 . Recycler 4 | . 1 3 Mechanic 1 | . . 1 Operator 1 | . . 1 Watcher 4 | . 2 2 Swarmer 5 | . 2 3 Grunt 30 | . 7 23 Brawler 2 | . . 2 Sentry 6 | . . 6 Best Kill Streak 8 | . 8 8 Combat Bots Only 6 | . 6 6 Max Kills in Single Turn 4 | . 2 4 Gunslinging . | . . . Exploded 2 | . 2 2 Melee 1 | . . 1 Uniques/NPCs Destroyed . | . . . Combat | -11 -10 -9 -------- Run | Yrd Mat Mat Hostile Shots Fired 210 | . 22 188 Missed 62 | . 10 52 Damage Taken 2200 | . 197 2003 Core 429 | . 22 407 Absorbed by Shields . | . . . Redirected to Shielding 17 | . 12 5 Core Remaining (%) 95 | 100 91 . Volleys Fired 154 | . 37 117 Largest 2 | . 1 2 Hottest 50 | . 30 50 Shots Fired 174 | . 37 137 Gun 122 | . 22 100 Cannon . | . . . Launcher 52 | . 15 37 Special . | . . . Kinetic 122 | . 22 100 Thermal . | . . . Explosive 52 | . 15 37 Electromagnetic . | . . . Robot Hit Streak 10 | . 4 10 Robot Miss Streak 4 | . 4 3 Penetration Max . | . . . Secondary Targets 1 | . . 1 Max Gunslinging Chain 1 | . . 1 Shots Hit Robots 121 | . 20 101 Core Hits 115 | . 28 87 Critical Kills 3 | . 1 2 Critical Parts Destroyed . | . . . Critical Strikes 3 | . 1 2 Destroy 2 | . 1 1 Smash 1 | . . 1 Melee Attacks 12 | . . 12 Impact 12 | . . 12 Slashing . | . . . Piercing . | . . . Sneak Attacks 1 | . . 1 Combat Hostiles . | . . . Follow-up Attacks . | . . . Damage Inflicted 3844 | . 847 2997 Guns 1142 | . 129 1013 Cannons . | . . . Explosions 2382 | . 715 1667 Melee 314 | . . 314 Ramming 6 | . 3 3 Kinetic 1142 | . 129 1013 Thermal 34 | . 34 . Explosive 2348 | . 681 1667 Electromagnetic . | . . . Impact 314 | . . 314 Slashing . | . . . Piercing . | . . . Highest Corruption 8 | . . 8 Average Corruption 5 | . . 5 Corruption Purged . | . . . Corruption Blocked . | . . . Effects 43 | . . 43 Message Errors 11 | . . 11 Matter Fused 6 | . . 6 Heat Flow Errors 6 | . . 6 Energy Discharges 5 | . . 5 Parts Rejected 1 | . . 1 Parts Fused 2 | . . 2 Data Loss (minor) 4 | . . 4 Data Loss (major) 3 | . . 3 Misfires 2 | . . 2 Weapon Failures 3 | . . 3 Overload Shots . | . . . Overflow Damage 172 | . 43 129 Projectiles . | . . . Explosions 100 | . 43 57 Melee 72 | . . 72 Knockbacks . | . . . Impact . | . . . Kinetic . | . . . Secondary . | . . . Self-Inflicted Damage 185 | . 62 123 Shots 11 | . 5 6 Rammed 1 | . . 1 Targets Rammed 3 | . 2 1 Kicked 2 | . 2 . Crushed . | . . . Highest Temperature 258 | . 1 258 Average Temperature 68 | . 1 70 Received Heat Transfer 957 | . 72 885 Siege Activations . | . . . Robots Corrupted 1 | . . 1 Combat Hostiles 1 | . . 1 Parts Fried 5 | . . 5 Impact Corruptions 3 | . . 3 Robots Melted . | . . . Combat Hostiles . | . . . Parts Melted . | . . . Heat Transferred 50 | . 50 . Parts Sabotaged . | . . . Parts Stolen . | . . . Parts Stripped . | . . . Power Chain Reactions . | . . . Alert | -11 -10 -9 ------- Run | Yrd Mat Mat Peak Influence 746 | . 458 746 Initial 135 | . . 135 Average 382 | . 224 477 Maximum Alert Level 3 | . 2 3 Low Security (%) 19 | 100 44 2 Level 1 33 | . 52 25 Level 2 39 | . 2 59 Level 3 8 | . . 12 Level 4 . | . . . Level 5 . | . . . High Security . | . . . Max Security . | . . . Squads Dispatched 11 | . 3 8 Investigation 4 | . . 4 Extermination . | . . . Reinforcement 5 | . 3 2 Assault 2 | . . 2 Garrison . | . . . Intercept . | . . . Searches Triggered . | . . . Construction Impeded 1 | . . 1 Haulers Reinforced . | . . . Active Scanning Responses . | . . . Cargo Convoy Interrupts . | . . . Stealth | -11 -10 -9 --------- Run | Yrd Mat Mat Distress Signals 2 | . 1 1 Communications Jammed . | . . . Distress Signals . | . . . Times Spotted 58 | . 16 42 Peak Tracking Total 6 | . 5 6 Tactical Retreats 1 | . . 1 Traps | -11 -10 -9 ------- Run | Yrd Mat Mat Traps Triggered 1 | . . 1 Indirectly . | . . . Trap Hack Attempts . | . . . Triggered . | . . . Disarmed . | . . . Reprogrammed . | . . . Reused . | . . . Traps Extracted . | . . . Installed . | . . . Triggered . | . . . Machines | -11 -10 -9 ---------- Run | Yrd Mat Mat Machines Disabled 7 | . 4 3 Max in Single Turn 3 | . 3 1 Machines Repaired . | . . . Machines Dismantled . | . . . Machines Sabotaged . | . . . Overloaded Fab Kills . | . . . Hacking | -11 -10 -9 --------- Run | Yrd Mat Mat Machines Accessed 8 | . 1 7 Terminals 6 | . 1 5 Fabricators . | . . . Repair Stations . | . . . Recycling Units . | . . . Scanalyzers 2 | . . 2 Garrison Access . | . . . Total Hacks 30 | . 2 28 Successful 25 | . 1 24 Failed 5 | . 1 4 Catastrophic 1 | . 1 . Database Lockouts . | . . . Manual . | . . . Terminals 15 | . 2 13 Fabricators . | . . . Repair Stations . | . . . Recycling Units . | . . . Scanalyzers 15 | . . 15 Garrison Access . | . . . Terminal Hacks 11 | . 1 10 Record 4 | . . 4 Terminal Index 1 | . . 1 Alert Level 2 | . . 2 Locate Traps 1 | . . 1 Investigation Status 1 | . 1 . Hauler Manifests 1 | . . 1 Zone Layout 1 | . . 1 Fabricator Hacks . | . . . Repair Station Hacks . | . . . Recycling Unit Hacks . | . . . Scanalyzer 14 | . . 14 Insert Component 7 | . . 7 Analyze 7 | . . 7 Garrison Access Hacks . | . . . Unauthorized Hacks . | . . . Terminals . | . . . Fabricators . | . . . Repair Stations . | . . . Recycling Units . | . . . Scanalyzers . | . . . Garrison Access . | . . . Data Cores Recovered 1 | . . 1 Used . | . . . Hacking Detections 6 | . . 6 Full Trace Events 5 | . . 5 Feedback Events 1 | . . 1 Corruption 1 | . . 1 Feedback Blocked . | . . . Robot Schematics Acquired . | . . . Robots Built . | . . . Authchips . | . . . Time . | . . . Total Robot Build Rating . | . . . Part Schematics Acquired 6 | . . 6 Parts Built . | . . . Authchips . | . . . Time . | . . . Total Part Build Rating . | . . . Parts Repaired . | . . . Time . | . . . Parts Recycled . | . . . Recycled Matter . | . . . Retrieved Matter . | . . . Retrieved Components . | . . . Parts Scanalyzed 6 | . . 6 Part Schematics Acquired 6 | . . 6 Parts Damaged . | . . . Bothacking | -11 -10 -9 ------------ Run | Yrd Mat Mat Used RIF Installer . | . . . Robots Hacked . | . . . Non-combat . | . . . Combat . | . . . Robot Hacks Applied . | . . . Relay Couplers Released . | . . . Fabnet Peak Effective % . | . . . Robots Rewired . | . . . Allies Hacked . | . . . Hacks Repelled . | . . . Allies | -11 -10 -9 -------- Run | Yrd Mat Mat Total Allies . | . . . Largest Group . | . . . Highest-Rated Group . | . . . Highest-Rated Ally . | . . . Total Orders . | . . . Ally Attacks . | . . . Total Damage . | . . . Kills . | . . . Allies Corrupted . | . . . Allies Melted . | . . . Intel | -11 -10 -9 ------- Run | Yrd Mat Mat Robot Analysis Total . | . . . Derelict Logs Recovered . | . . . Drone Launches . | . . . Drone Recoveries . | . . . Exploration | -11 -10 -9 ------------- Run | Yrd Mat Mat Turns Passed 2522 | 79 799 1644 Spaces Moved 1426 | 71 598 757 Core 121 | 27 . 94 Treads . | . . . Legs 1305 | 44 598 663 Wheels . | . . . Hover . | . . . Flight . | . . . Fastest Speed 50 | 50 120 120 Average Speed 147 | 93 120 173 Slowest Speed 350 | 120 120 350 Overloaded Moves . | . . . Propulsion Burnouts . | . . . Robots Hopped . | . . . Cave-ins Triggered . | . . . Exploration Rate (%) 41 | 5 57 61 Regions Visited 2 Branch Regions . Pre-discovered Areas . | . . . Known Exits Taken . | . . . Unknown Exits Taken 2 | 1 1 . Scrap Searched . | . . . Spaces Dug . | . . . Terrain Destroyed 300 | . 125 175 Melee . | . . . Projectile . | . . . AOE 300 | . 125 175 Terrain Rammed . | . . . Walls Destroyed . | . . . Machines Disabled . | . . . Actions | -11 -10 -9 --------- Run | Yrd Mat Mat Total 1666 | 83 647 936 Wait 9 | 3 1 5 Move 1424 | 70 597 757 Hop . | . . . Pick Up 31 | 5 6 20 Fast Attach 1 | 1 . . Attach 24 | 4 3 17 Detach 2 | . 1 1 Swap 3 | . . 3 Drop 3 | . . 3 Fire 154 | . 37 117 Melee 12 | . . 12 Ram 1 | . . 1 Kick 2 | . 2 . Crush . | . . . Escape Stasis . | . . . Rewire . | . . . Trap . | . . . Miscellaneous . | . . . Route ------- -11/Scrapyard -10/Materials (discovered 3 exits: *Mat x2 / [*Min]) -9/Materials (discovered 3 exits: [*Mat x2] / [*Min]) History --------- Turn | Location | Event 10 | -11/Scrapyard | Discovered new exit (range 16) 80 | -11/Scrapyard | Entered Materials 291 | -10/Materials | Discovered new exit (range 16) 318 | -10/Materials | Build established: Mutant 743 | -10/Materials | Discovered new exit (range 8) 845 | -10/Materials | Discovered new exit (range 5) 879 | -10/Materials | Entered another Materials area 879 | -9/Materials | Evolved 2 slots: Utility x1, Weapon x1 1177 | -9/Materials | Build established: Tank 1601 | -9/Materials | Discovered new exit (range 16) 1743 | -9/Materials | Lost 3 parts (1u2w) 1814 | -9/Materials | Core integrity fell below 50% 1827 | -9/Materials | Lost 3 parts (1n1u1w) 1856 | -9/Materials | Discovered new exit (range 15) 2002 | -9/Materials | Build established: Mutant 2267 | -9/Materials | Core integrity fell below 20% 2479 | -9/Materials | First assault squad dispatched 2480 | -9/Materials | Discovered new exit (range 5) 2523 | -9/Materials | Destroyed by G-47 Trooper with Particle Gun Last Messages --------------- I-25 Savior unfolds itself. K-01 Serf collects debris. FSK#PH#LZBDKQR>AOANBHQM:V Imp. Assault Rifle destroyed. Aluminum Leg destroyed. System corrupted by crushing effect (+2). Knocked back. K-01 Serf collects debris. B-36 Bruiser destroyed. K-01 Serf collects debris. G-34 Mercenary destroyed. K-01 Serf collects debris. 2/TC>7OIGNLJHQQ97B&WAPM>9FTQAEV2BX K-01 Serf collects debris. G-34 Mercenary destroyed. K-01 Serf collects debris. M-13 Machinist repairs I-25 Savior. K-01 Serf collects debris. M-13 Machinist suffers critical hit (Destroy). M-13 Machinist destroyed. Map ----- +----------------------------------------------------+ | ?????????????????????????????????????????????????? | | ?????????????????????????????????????????????????? | | ?????????????????????????????????????????????????? | | ?????????????????????????????????????????????????? | | ?????????????????????????????????????????????????? | | ?????????????????????????????????????????????????? | | ?????????????????????????????????????????????????? | | ?????????????????????????????????????????????????? | | ?????????????????????????????????????????????????? | | ?????????????????????????????????????????????????? | | ?????????????????????????????????????????????????? | | ?????????????????????????????????????????????????? | | #######+##????#######????????????????????????????? | | ???? ????????????????????????????? | | ????? ????????????????????????????? | | ?????? ????????????????????????????? | | +######+#####????# ????????????????????????????? | | ???# *% #????# ???????##########???????????? | | ???#* !""" ##???# ???????# != ???????????? | | ???# [="" #???# ######## != """ ???????????? | | ???# " =%##???# # = """ #??????????? | | ???# !#????# # """ #??????????? | | ???# #????# # #??????????? | | ???# %= !! #????####+### + #??????????? | | ???# "T" != #????# # # #??????????? | | ???# """ ! #????# #@%*# [ #??????????? | | ####/########????# # k%###########??????????? | | ########### """ #g=%% ???????????????????? | | + """ # == < ?????????????????? | | ########### """ # i #????????????????? | | ###+#+######?????################????????????????? | | # #?????????????????????????????????????? | | # #?????????????????????????????????????? | | "# #?????????????????????????????????????? | | "# #?????????????????????????????????????? | | # #?????????????????????????????????????? | | # #?????????????????????????????????????? | | # #?????????????????????????????????????? | | # #?????????????????????????????????????? | | ############?????????????????????????????????????? | | | | | | | | | | | | | | | | | | | | | +----------------------------------------------------+ Best States ------------- Heat Dissipation 28 Energy Generation 12 Energy Capacity 265 Matter Stores 300 Matter Capacity 300 Sight Range 18 Terrain Scan Density 10 Armor Coverage 375 Propulsion Shielding 33 Evasion (%) 55 Targeting Accuracy 6 Item Schematics ----------------- Hvy. Assault Rifle | -9/Materials | Scanalyzed Rocket Launcher | -9/Materials | Scanalyzed Huge Storage Unit | -9/Materials | Scanalyzed Med. Storage Unit | -9/Materials | Scanalyzed Weight Redist. System | -9/Materials | Scanalyzed Imp. Targeting Computer | -9/Materials | Scanalyzed Robot Schematics ------------------ None Fabricated ------------ Nothing Alien Tech Used ----------------- None Achievements -------------- Hey, That's Mine! Power Corrupts Remodeling Significant Disruption Challenges ------------ None Game ------ Seed ThunderThrowingReplicator Manual? 0 Play Time 00:22:35 Cumulative 4.7 hours Start 2024.08.17 @ 21:30:56 End 2024.08.17 @ 21:53:08 Sessions 1 Manual Loads 0 Difficulty Rogue Special Mode None Game No. 13 Rogue 13 Adventurer 0 Explorer 0 Win Type - Total 0 Types 0/0/0/0/0/0/0/0/0 Lore% 2 Gallery% 9 Achievement% 11 Wizard Run 0 Options --------- Layout 1 ASCII 0 Keyboard 0 Movement Arrows Keybinds 0 Fullscreen 1 Font 24/Smallcaps Map View 50x35 Zoom Use 0% Tactical HUD 0 Map Filters NONE Filters NONE Steam 1 RUN: c9f63ed7-30c4-46c6-b093-926e4f014fe2